bitfinex-derivatives/quotes_BTCF0:USTF0_20240817
["timestamp","ask_amount","ask_price","bid_price","bid_amount"]
[1723884831580,0.00025302,59292.0,59291.0,0.1956492]
[1723884831771,0.00025302,59292.0,59291.0,0.25034832]
[1723884831973,0.00025302,59292.0,59291.0,0.23276353]
[1723884832583,0.00025302,59292.0,59291.0,0.2429311]
[1723884834171,0.00025302,59292.0,59291.0,0.2429303]
[1723884835683,0.00025302,59292.0,59291.0,0.26051511]
[1723884836090,0.00025302,59292.0,59291.0,0.16721511]
[1723884836388,0.00025302,59292.0,59291.0,0.26051511]
[1723884837890,0.00025302,59292.0,59291.0,0.2605152]
[1723884839875,0.00025302,59292.0,59291.0,0.16870157]
[1723884840182,0.00025302,59292.0,59291.0,0.26051511]
[1723884840388,0.00025302,59292.0,59291.0,0.24293039]
[1723884840979,0.00025302,59292.0,59291.0,0.26051527]
[1723884841175,0.00025302,59292.0,59291.0,0.24293039]
[1723884841577,0.00025302,59292.0,59291.0,0.31021596]
[1723884842996,0.00025302,59292.0,59291.0,0.31021597]
[1723884843387,0.00025302,59292.0,59291.0,0.1496304]
[1723884843587,0.36105302,59292.0,59291.0,0.13686693]
[1723884843891,0.53758602,59292.0,59291.0,0.07622883]
[1723884845891,0.44428602,59292.0,59291.0,0.07622883]
[1723884846989,0.44428602,59292.0,59291.0,0.03911713]
[1723884847296,0.44428602,59292.0,59291.0,0.07623426]
[1723884847493,0.08348602,59292.0,59291.0,0.07623426]
[1723884847696,0.44428602,59292.0,59291.0,0.07623426]
[1723884850200,0.08348602,59292.0,59291.0,0.07623426]
[1723884850699,0.44428602,59292.0,59291.0,0.07623426]
[1723884851198,0.44428602,59292.0,59291.0,0.08958766]
[1723884851499,0.08348602,59292.0,59291.0,0.12670479]
[1723884851698,0.44428602,59292.0,59291.0,0.12670479]
[1723884853596,0.44428602,59292.0,59291.0,0.07623426]
[1723884853794,0.53758602,59292.0,59291.0,0.07623426]
[1723884857103,0.17678602,59292.0,59291.0,0.07623426]
[1723884857292,0.53758602,59292.0,59291.0,0.07623426]
[1723884859906,1.04354602,59292.0,59291.0,0.07623426]
[1723884860204,1.04354602,59292.0,59276.0,0.10119644]
[1723884860205,0.063237,59288.0,59284.0,0.05049566]
[1723884860502,0.3608,59285.0,59284.0,0.063242]
[1723884861307,0.156537,59288.0,59285.0,0.06324]
[1723884861495,0.156537,59288.0,59286.0,0.063239]
[1723884861698,0.156537,59288.0,59286.0,0.11372065]
[1723884863704,0.156537,59288.0,59286.0,0.11472065]
[1723884863904,0.157537,59288.0,59286.0,0.11572065]
[1723884869216,0.157537,59288.0,59287.0,0.05048165]
[1723884870415,0.156537,59288.0,59287.0,0.002]
[1723884870711,0.156537,59288.0,59287.0,0.05249356]
[1723884870910,0.3608,59289.0,59287.0,0.11573156]
[1723884871109,0.4541,59289.0,59287.0,0.11573156]
[1723884871310,0.4541,59289.0,59288.0,0.01759652]
[1723884871626,0.61159186,59289.0,59288.0,0.05050464]
[1723884872811,0.61159186,59289.0,59287.0,0.002]
[1723884873011,0.527336,59289.0,59287.0,0.002]
[1723884873518,0.3608,59288.0,59285.0,0.06324]
[1723884873719,0.3608,59288.0,59286.0,0.05471903]
[1723884874016,0.3608,59288.0,59287.0,0.05471903]
[1723884874415,0.3608,59288.0,59287.0,0.03712102]
[1723884875219,0.424037,59288.0,59287.0,0.03812102]
[1723884875407,0.424037,59288.0,59287.0,0.05671775]
[1723884876308,0.424037,59288.0,59287.0,0.05671699]
[1723884876617,0.424037,59288.0,59287.0,0.03912026]
[1723884878422,0.063237,59288.0,59287.0,0.002]
[1723884878721,0.424037,59288.0,59287.0,0.002]
[1723884879124,0.063237,59288.0,59287.0,0.002]
[1723884879316,0.424037,59288.0,59287.0,0.002]
[1723884879515,0.434037,59288.0,59287.0,0.002]
[1723884881111,0.424037,59288.0,59287.0,0.002]
[1723884881310,0.50829286,59288.0,59287.0,0.002]
[1723884881607,0.15749286,59288.0,59287.0,0.002]
[1723884881807,0.51829286,59288.0,59287.0,0.002]
[1723884882014,0.50829286,59288.0,59287.0,0.002]
[1723884885117,0.50829286,59288.0,59287.0,0.065238]
[1723884886727,0.14749286,59288.0,59287.0,0.065238]
[1723884886930,0.50829286,59288.0,59287.0,0.065238]
[1723884887132,0.424037,59288.0,59287.0,0.11573864]
[1723884888032,0.063237,59288.0,59287.0,0.11573864]
[1723884888330,0.45137372,59288.0,59287.0,0.11573864]
[1723884889330,0.45137372,59288.0,59287.0,0.10235837]
[1723884889826,0.09057372,59288.0,59287.0,0.11577956]
[1723884890033,0.45137372,59288.0,59287.0,0.11577956]
[1723884890330,0.45137372,59288.0,59287.0,0.15289992]
[1723884890533,0.45137368,59288.0,59287.0,0.15289992]
[1723884891120,0.45137368,59288.0,59287.0,0.10235836]
[1723884891321,0.44512679,59288.0,59287.0,0.10235836]
[1723884892129,0.08432679,59288.0,59287.0,0.10235836]
[1723884892332,0.44512679,59288.0,59287.0,0.10235836]
[1723884893023,0.08432679,59288.0,59287.0,0.10235836]
[1723884893236,0.44512679,59288.0,59287.0,0.10235836]
[1723884893631,0.3608,59288.0,59287.0,0.16964393]
[1723884895244,0.3608,59289.0,59287.0,0.10640593]
[1723884895430,0.3608,59289.0,59288.0,0.13042036]
[1723884896340,0.3608,59289.0,59288.0,0.19365736]
[1723884897330,0.3608,59289.0,59288.0,0.10035736]
[1723884897639,0.40813631,59289.0,59288.0,0.03812036]
[1723884897847,0.3808,59289.0,59288.0,0.08964685]
[1723884898145,0.3808,59289.0,59288.0,0.08964628]
[1723884899047,0.39075897,59289.0,59288.0,0.08964628]
[1723884899233,0.39075897,59289.0,59288.0,0.15288328]
[1723884900236,0.47506078,59289.0,59288.0,0.15288328]
[1723884901041,0.46510181,59289.0,59288.0,0.15288328]
[1723884901231,0.44510181,59289.0,59288.0,0.15288328]
[1723884901436,0.53840181,59289.0,59288.0,0.15288328]
[1723884901636,0.4541,59289.0,59288.0,0.15288328]
[1723884901832,0.4814363,59289.0,59288.0,0.10235679]
[1723884902938,0.4914363,59289.0,59288.0,0.10235679]
[1723884905433,0.5546723,59289.0,59288.0,0.03911979]
[1723884907344,0.55467348,59289.0,59288.0,0.03911979]
[1723884907744,0.19387348,59289.0,59288.0,0.03911979]
[1723884907945,0.55467348,59289.0,59288.0,0.03911979]
[1723884910149,0.55467348,59289.0,59288.0,0.03912153]
[1723884911553,0.19387348,59289.0,59288.0,0.03912153]
[1723884911754,0.55467348,59289.0,59288.0,0.03912153]
[1723884912855,0.19387348,59289.0,59288.0,0.03912153]
[1723884913063,0.55467348,59289.0,59288.0,0.03912153]
[1723884914048,0.19387348,59289.0,59288.0,0.03912153]
[1723884914249,0.55467348,59289.0,59288.0,0.03912153]
[1723884914949,0.19387348,59289.0,59288.0,0.03912153]
[1723884915149,0.55467348,59289.0,59288.0,0.03912153]
[1723884915950,0.19387348,59289.0,59288.0,0.03912153]
[1723884916165,0.55467348,59289.0,59288.0,0.03912153]
[1723884916760,0.55467348,59289.0,59288.0,0.002]
[1723884918455,0.55467348,59289.0,59283.0,0.05052649]
[1723884918456,0.063242,59284.0,59283.0,0.05052649]
[1723884918655,0.56834206,59284.0,59283.0,0.03712332]
[1723884919058,0.51138122,59284.0,59283.0,0.03712332]
[1723884919563,0.485042,59284.0,59283.0,0.03812332]
[1723884919954,0.485042,59284.0,59283.0,0.03912332]
[1723884920654,0.56932176,59284.0,59283.0,0.03912332]
[1723884920965,0.20852176,59284.0,59283.0,0.03912332]
[1723884921158,0.56932176,59284.0,59283.0,0.03912332]
[1723884921349,0.5123815,59284.0,59283.0,0.03912332]
[1723884922060,0.5123815,59284.0,59283.0,0.002]
[1723884922862,0.1515815,59284.0,59283.0,0.002]
[1723884923167,0.52269699,59284.0,59283.0,0.002]
[1723884923861,0.49535749,59284.0,59283.0,0.002]
[1723884924960,0.13455749,59284.0,59283.0,0.002]
[1723884925160,0.49535749,59284.0,59283.0,0.002]
[1723884925558,0.13455749,59284.0,59283.0,0.002]
[1723884925867,0.49535749,59284.0,59283.0,0.002]
[1723884926560,0.13455749,59284.0,59283.0,0.002]
[1723884926866,0.49535749,59284.0,59283.0,0.002]
[1723884927267,0.52269701,59284.0,59283.0,0.002]
[1723884929372,0.16189701,59284.0,59283.0,0.002]
[1723884930161,0.52269701,59284.0,59283.0,0.002]
[1723884930367,0.16189701,59284.0,59283.0,0.002]
[1723884930561,0.52269701,59284.0,59283.0,0.002]
[1723884931268,0.49535749,59284.0,59283.0,0.002]
[1723884931969,0.13455749,59284.0,59283.0,0.002]
[1723884932153,0.49535749,59284.0,59283.0,0.002]
[1723884933171,0.52269699,59284.0,59283.0,0.002]
[1723884934354,0.52269711,59284.0,59283.0,0.002]
[1723884935066,0.16189711,59284.0,59283.0,0.002]
[1723884935263,0.52269711,59284.0,59283.0,0.002]
[1723884938469,0.16189711,59284.0,59283.0,0.002]
[1723884938769,0.52269711,59284.0,59283.0,0.002]
[1723884938969,0.522697,59284.0,59283.0,0.002]
[1723884941070,0.161897,59284.0,59283.0,0.002]
[1723884941265,0.522697,59284.0,59283.0,0.002]
[1723884943378,0.52269751,59284.0,59283.0,0.002]
[1723884945080,0.16189751,59284.0,59283.0,0.002]
[1723884945265,0.52269751,59284.0,59283.0,0.002]
[1723884946172,0.62380435,59284.0,59283.0,0.002]
[1723884947273,0.26300435,59284.0,59283.0,0.002]
[1723884947473,0.62380435,59284.0,59283.0,0.002]
[1723884947777,0.26300435,59284.0,59283.0,0.002]
[1723884947985,0.62380435,59284.0,59283.0,0.002]
[1723884949584,0.52269751,59284.0,59283.0,0.002]
[1723884951886,0.16189751,59284.0,59283.0,0.002]
[1723884952275,0.52269751,59284.0,59283.0,0.002]
[1723884952683,0.16189743,59284.0,59283.0,0.002]
[1723884952883,0.52269743,59284.0,59283.0,0.002]
[1723884953077,0.16189743,59284.0,59283.0,0.002]
[1723884953481,0.52269743,59284.0,59283.0,0.002]
[1723884953877,0.16189743,59284.0,59283.0,0.002]
[1723884954079,0.52269743,59284.0,59283.0,0.002]
[1723884954973,0.16189743,59284.0,59283.0,0.002]
[1723884955374,0.52269743,59284.0,59283.0,0.002]
[1723884956173,0.063247,59279.0,59278.0,0.05052649]
[1723884956378,0.063248,59278.0,59277.0,0.0485]
[1723884956578,0.23388794,59278.0,59277.0,0.0485]
[1723884956781,0.17063994,59278.0,59275.0,0.05052649]
[1723884956979,0.1433,59278.0,59276.0,0.03712801]
[1723884957178,0.063251,59275.0,59274.0,0.05054337]
[1723884957387,0.063251,59275.0,59268.0,0.08423714]
[1723884957388,0.063254,59272.0,59271.0,0.05054708]
[1723884957579,0.153254,59272.0,59271.0,0.03713034]
[1723884957778,0.54139931,59272.0,59271.0,0.03713034]
[1723884958090,0.063255,59271.0,59270.0,0.00025302]
[1723884958287,0.1405999,59271.0,59270.0,0.00025302]
[1723884958590,0.19751972,59271.0,59270.0,0.00025302]
[1723884959081,0.18930125,59271.0,59270.0,0.00025302]
[1723884959579,0.161955,59271.0,59270.0,0.00025302]
[1723884959988,0.162955,59271.0,59270.0,0.00125302]
[1723884960287,0.19030142,59271.0,59270.0,0.00125302]
[1723884960677,0.17331386,59271.0,59270.0,0.00125302]
[1723884960990,0.20366032,59271.0,59270.0,0.00225302]
[1723884961794,0.15496032,59271.0,59270.0,0.00225302]
[1723884962187,0.12761386,59271.0,59270.0,0.00225302]
[1723884963090,0.15496145,59271.0,59270.0,0.00225302]
[1723884963292,0.21176085,59271.0,59270.0,0.00225302]
[1723884963687,0.12761386,59271.0,59270.0,0.00225302]
[1723884964698,0.84921386,59271.0,59270.0,0.00225302]
[1723884965405,0.12761386,59271.0,59270.0,0.00225302]
[1723884965598,0.84921386,59271.0,59270.0,0.00225302]
[1723884966298,0.12761386,59271.0,59270.0,0.00225302]
[1723884966481,0.84921386,59271.0,59270.0,0.00225302]
[1723884966887,0.12761386,59271.0,59270.0,0.00225302]
[1723884967082,0.84921386,59271.0,59270.0,0.00225302]
[1723884967284,0.79287267,59271.0,59270.0,0.00225302]
[1723884967593,0.7256,59271.0,59270.0,0.06551002]
[1723884967797,0.77605209,59271.0,59270.0,0.16391002]
[1723884969087,0.41525209,59271.0,59270.0,0.16391002]
[1723884969887,0.3648,59271.0,59270.0,0.16391002]
[1723884971488,0.4581,59271.0,59270.0,0.16391002]
[1723884974208,0.50855209,59271.0,59270.0,0.16391002]
[1723884975099,0.14775209,59271.0,59270.0,0.16391002]
[1723884975309,0.50855209,59271.0,59270.0,0.16391002]
[1723884975806,0.05445209,59271.0,59270.0,0.16391002]
[1723884976002,0.41525209,59271.0,59270.0,0.16391002]
[1723884977408,0.05445209,59271.0,59270.0,0.16391002]
[1723884977602,0.3648,59271.0,59270.0,0.16391002]
[1723884979308,0.004,59271.0,59270.0,0.16391002]
[1723884979512,0.3648,59271.0,59270.0,0.16391002]
[1723884979697,0.4581,59271.0,59270.0,0.16391002]
[1723884980809,0.4781,59271.0,59270.0,0.16391002]
[1723884981705,0.60862867,59271.0,59270.0,0.10065302]
[1723884983602,0.541356,59271.0,59270.0,0.10065302]
[1723884988410,0.521356,59271.0,59270.0,0.10065302]
[1723884989004,0.3648,59271.0,59270.0,0.25721002]
[1723884989299,0.43220806,59271.0,59270.0,0.25721002]
[1723884989699,0.07140806,59271.0,59270.0,0.25721002]
[1723884990306,0.07140806,59271.0,59270.0,0.2943399]
[1723884993305,0.004,59271.0,59270.0,0.2943399]
[1723884994313,0.004,59271.0,59270.0,0.36162547]
[1723884995910,0.06743952,59272.0,59270.0,1.1372429]
[1723884996117,0.05057623,59273.0,59272.0,0.063255]
[1723884996305,0.05082925,59277.0,59272.0,0.16563138]
[1723884996509,0.00025302,59277.0,59276.0,0.15655]
[1723884996712,0.00025302,59277.0,59276.0,0.24037474]
[1723884997321,0.00025302,59277.0,59276.0,0.2403727]
[1723884997914,0.00025302,59277.0,59276.0,0.2413727]
[1723884998318,0.00225302,59277.0,59276.0,0.2423727]
[1723884999915,0.00225302,59277.0,59276.0,0.25237223]
[1723885001211,0.00225302,59277.0,59276.0,0.31960539]
[1723885004011,0.00225302,59277.0,59276.0,0.38285539]
[1723885004212,0.00225302,59277.0,59276.0,0.88897539]
[1723885004611,0.00225302,59277.0,59276.0,0.38285539]
[1723885006414,0.00225302,59277.0,59276.0,0.31562223]
[1723885006621,0.00225302,59277.0,59276.0,0.38281038]
[1723885007116,0.05057623,59284.0,59276.0,1.16243038]
[1723885007317,0.41137623,59286.0,59285.0,0.063241]
[1723885007618,0.50467623,59286.0,59285.0,0.063241]
[1723885007824,0.56791623,59286.0,59285.0,0.063241]
[1723885008018,0.57791623,59286.0,59285.0,0.063241]
[1723885008221,0.52734,59286.0,59285.0,0.063241]
[1723885008423,0.57791623,59286.0,59285.0,0.063241]
[1723885008616,0.57791623,59286.0,59285.0,0.064241]
[1723885010026,0.57791623,59286.0,59285.0,0.065241]
[1723885010432,0.51467623,59286.0,59285.0,0.065241]
[1723885011013,0.4641,59286.0,59285.0,0.065241]
[1723885011218,0.4641,59286.0,59285.0,0.07561473]
[1723885013223,0.1033,59286.0,59285.0,0.07561473]
[1723885015731,0.0933,59286.0,59285.0,0.07561473]
[1723885018014,0.16073952,59286.0,59285.0,0.07561473]
[1723885019432,0.0933,59286.0,59285.0,0.07561473]
[1723885021232,0.1033,59286.0,59285.0,0.07561473]
[1723885023032,0.0933,59286.0,59285.0,0.07561473]
[1723885024222,0.0933,59286.0,59285.0,0.1260057]
[1723885025338,0.17744699,59286.0,59285.0,0.07561473]
[1723885025633,0.18744699,59286.0,59285.0,0.07561473]
[1723885025836,0.1033,59286.0,59285.0,0.07561473]
[1723885026226,0.0933,59286.0,59285.0,0.07561473]
[1723885026422,0.02733759,59286.0,59285.0,0.07561473]
[1723885026629,0.08433748,59286.0,59285.0,0.07561473]
[1723885029828,0.08433748,59286.0,59285.0,0.12531473]
[1723885036135,0.08433748,59286.0,59285.0,0.16243609]
[1723885036340,0.08433748,59286.0,59285.0,0.22962424]
[1723885036537,0.09433748,59286.0,59285.0,0.22962424]
[1723885037544,0.09433748,59286.0,59285.0,0.19250288]
[1723885037735,0.09433748,59286.0,59285.0,0.16243609]
[1723885040248,0.0943515,59286.0,59285.0,0.16243609]
[1723885040433,0.01,59286.0,59285.0,0.16243609]
[1723885040637,0.09435169,59286.0,59285.0,0.16243609]
[1723885040837,0.01,59286.0,59285.0,0.16243609]
[1723885041247,0.03733755,59286.0,59285.0,0.16243609]
[1723885041647,0.03733755,59286.0,59285.0,0.16243624]
[1723885042344,0.02733755,59286.0,59285.0,0.16243624]
[1723885043843,0.03733755,59286.0,59285.0,0.11273624]
[1723885044638,0.03733759,59286.0,59285.0,0.11273624]
[1723885045843,0.03733759,59286.0,59285.0,0.11273627]
[1723885047936,0.03733759,59286.0,59285.0,0.10236254]
[1723885048135,0.03733759,59286.0,59285.0,0.15288223]
[1723885049254,0.39813869,59286.0,59285.0,0.15288223]
[1723885049941,0.39813869,59286.0,59285.0,0.15288373]
[1723885050337,0.40844555,59286.0,59285.0,0.15288373]
[1723885051143,0.40844555,59286.0,59285.0,0.10236404]
[1723885051348,0.40844555,59286.0,59285.0,0.15287546]
[1723885051945,0.04764555,59286.0,59285.0,0.15287546]
[1723885052156,0.40844555,59286.0,59285.0,0.15287546]
[1723885053147,0.04764555,59286.0,59285.0,0.15287546]
[1723885053758,0.40844555,59286.0,59285.0,0.15287546]
[1723885054054,0.04764555,59286.0,59285.0,0.15287547]
[1723885054255,0.40844555,59286.0,59285.0,0.15287547]
[1723885055252,0.04764555,59286.0,59285.0,0.15287547]
[1723885055461,0.40844555,59286.0,59285.0,0.15287547]
[1723885055951,0.04764555,59286.0,59285.0,0.15287547]
[1723885056152,0.40844555,59286.0,59285.0,0.15287547]
[1723885056356,0.04764555,59286.0,59285.0,0.15287547]
[1723885056546,0.40844555,59286.0,59285.0,0.15287547]
[1723885058351,0.04764556,59286.0,59285.0,0.15287547]
[1723885058551,0.40844556,59286.0,59285.0,0.15287547]
[1723885058746,0.40844556,59286.0,59285.0,0.10236405]
[1723885059155,0.3981387,59286.0,59285.0,0.10236405]
[1723885059556,0.3881387,59286.0,59285.0,0.08963447]
[1723885059749,0.5446787,59286.0,59285.0,0.03912305]
[1723885060655,0.5546787,59286.0,59285.0,0.08963447]
[1723885060849,0.5546787,59286.0,59285.0,0.03912305]
[1723885062060,0.5546787,59286.0,59285.0,0.002]
[1723885062555,0.65586112,59286.0,59285.0,0.002]
[1723885064550,0.55256112,59286.0,59285.0,0.002]
[1723885064946,0.4513787,59286.0,59285.0,0.002]
[1723885066253,0.4613787,59286.0,59285.0,0.03912326]
[1723885067355,0.46137885,59286.0,59285.0,0.03912326]
[1723885068059,0.46137885,59286.0,59285.0,0.002]
[1723885068252,0.46137885,59286.0,59285.0,0.03912325]
[1723885069353,0.10057885,59286.0,59285.0,0.03912325]
[1723885069654,0.46137885,59286.0,59285.0,0.03912325]
[1723885071956,0.43404,59286.0,59285.0,0.03912325]
[1723885072154,0.46137894,59286.0,59285.0,0.03912325]
[1723885073063,0.10057894,59286.0,59285.0,0.03912325]
[1723885073251,0.46137894,59286.0,59285.0,0.03912325]
[1723885074550,0.10057894,59286.0,59285.0,0.03912325]
[1723885074751,0.46137894,59286.0,59285.0,0.03912325]
[1723885074955,0.46137894,59286.0,59285.0,0.03912327]
[1723885076266,0.45137894,59286.0,59285.0,0.15287569]
[1723885076455,0.45137786,59286.0,59285.0,0.10236427]
[1723885076851,0.09057786,59286.0,59285.0,0.10236427]
[1723885077369,0.09057773,59286.0,59285.0,0.10236427]
[1723885078164,0.45498,59287.0,59285.0,0.10236427]
[1723885078356,0.08433107,59286.0,59285.0,0.065241]
[1723885078559,0.08433107,59286.0,59285.0,0.10236262]
[1723885079768,0.08433107,59286.0,59285.0,0.10136262]
[1723885079961,0.08433107,59286.0,59285.0,0.10236262]
[1723885081872,0.08433107,59286.0,59285.0,0.065241]
[1723885082067,0.08433107,59286.0,59285.0,0.10236263]
[1723885087274,0.09433107,59286.0,59285.0,0.10236263]
[1723885087472,0.01,59286.0,59285.0,0.10236263]
[1723885087775,0.03733862,59286.0,59285.0,0.15283593]
[1723885087973,0.03733862,59286.0,59285.0,0.10236263]
[1723885088876,0.39813862,59286.0,59285.0,0.10236263]
[1723885089070,0.39813881,59286.0,59285.0,0.10236263]
[1723885089267,0.3608,59286.0,59285.0,0.10236263]
[1723885089474,0.3608,59286.0,59285.0,0.11993331]
[1723885089667,0.3608,59286.0,59285.0,0.10236263]
[1723885090069,0.424039,59287.0,59286.0,0.06324]
[1723885090278,0.424039,59287.0,59286.0,0.10036163]
[1723885090782,0.424039,59287.0,59286.0,0.10036123]
[1723885091366,0.3608,59287.0,59286.0,0.10036123]
[1723885091771,0.08457176,59291.0,59289.0,0.063237]
[1723885091970,0.00025302,59291.0,59290.0,0.24645723]
[1723885093579,0.00025302,59291.0,59290.0,0.29687566]
[1723885094178,0.00025302,59291.0,59290.0,0.25975443]
[1723885094373,0.00025302,59291.0,59290.0,0.29687164]
[1723885095268,0.00025302,59291.0,59290.0,0.29787164]
[1723885095471,0.00025302,59291.0,59290.0,0.29887164]
[1723885096584,0.0676274,59291.0,59290.0,0.24845321]
[1723885097172,0.0676274,59291.0,59290.0,0.25874224]
[1723885100182,0.00025302,59291.0,59290.0,0.16174224]
[1723885100385,0.01025302,59291.0,59290.0,0.065236]
[1723885100976,0.01025302,59291.0,59290.0,0.002]
[1723885100977,0.07348702,59291.0,59290.0,0.002]
[1723885110184,0.06348702,59291.0,59290.0,0.002]
[1723885110385,0.06348702,59291.0,59290.0,0.0478]
[1723885113879,0.06348702,59291.0,59290.0,0.111035]
[1723885114084,0.00025302,59291.0,59290.0,0.111035]
[1723885114484,0.00025302,59291.0,59290.0,0.160235]
[1723885115989,0.00025302,59291.0,59290.0,0.205535]
[1723885116189,0.01025302,59291.0,59290.0,0.205535]
[1723885116388,0.01025302,59291.0,59290.0,0.24265372]
[1723885116584,0.01025302,59291.0,59290.0,0.29307215]
[1723885118600,0.00025302,59291.0,59290.0,0.24265372]
[1723885119793,0.08457176,59291.0,59290.0,0.24265372]
[1723885120000,0.08457176,59291.0,59290.0,0.2930896]
[1723885121091,0.09457176,59291.0,59290.0,0.2930896]
[1723885121297,0.08457176,59291.0,59290.0,0.2930896]
[1723885121484,0.00025302,59291.0,59290.0,0.2930896]
[1723885122897,0.00025302,59291.0,59290.0,0.29308955]
[1723885123092,0.08457289,59291.0,59290.0,0.24265367]
[1723885124793,0.00025302,59291.0,59290.0,0.30991695]
[1723885125190,0.00025302,59291.0,59290.0,0.24265367]
[1723885125795,0.00025302,59291.0,59290.0,0.24165367]
[1723885125989,0.00025302,59291.0,59290.0,0.24265367]
[1723885126898,0.00025302,59291.0,59290.0,0.30891695]
[1723885127099,0.00025302,59291.0,59290.0,0.24165367]
[1723885127495,0.00025302,59291.0,59290.0,0.30890856]
[1723885127689,0.00025302,59291.0,59290.0,0.30890802]
[1723885130592,0.01025302,59291.0,59290.0,0.30890802]
[1723885131595,0.00025302,59291.0,59290.0,0.27178935]
[1723885131793,0.00025302,59291.0,59290.0,0.30890649]
[1723885135204,0.00025302,59291.0,59290.0,0.3264678]
[1723885135704,0.00025302,59291.0,59290.0,0.30890649]
[1723885137906,0.00025302,59291.0,59290.0,0.24165214]
[1723885138503,0.01025302,59291.0,59290.0,0.24165214]
[1723885139297,0.01025302,59291.0,59290.0,0.30890649]
[1723885140193,0.01025302,59291.0,59290.0,0.24165214]
[1723885141912,0.06743234,59294.0,59291.0,0.063234]
[1723885142094,0.05057382,59295.0,59294.0,0.063231]
[1723885142299,0.05057382,59296.0,59294.0,4.07254586]
[1723885142493,0.05057382,59297.0,59296.0,0.063229]
[1723885142693,0.05057382,59297.0,59296.0,0.25773986]
[1723885142999,0.05057382,59297.0,59296.0,0.78122312]
[1723885143197,0.00016755,59302.0,59297.0,0.063228]
[1723885143198,0.05057382,59298.0,59297.0,0.063228]
[1723885143397,0.05057382,59298.0,59297.0,0.57200191]
[1723885144196,0.06759989,59302.0,59298.0,0.063227]
[1723885144197,0.05057382,59299.0,59298.0,0.063227]
[1723885144504,0.05057382,59299.0,59298.0,0.26079648]
[1723885145196,0.05057382,59300.0,59299.0,0.063226]
[1723885145394,0.05057382,59300.0,59299.0,0.19363665]
[1723885147201,0.05057382,59301.0,59300.0,0.063225]
[1723885147401,0.05057382,59301.0,59300.0,0.29537624]
[1723885148209,0.05057382,59301.0,59300.0,0.24503565]
[1723885148805,0.05057382,59301.0,59300.0,0.60683565]
[1723885149205,0.06095112,59302.0,59301.0,0.063224]
[1723885150113,0.0103773,59302.0,59301.0,0.063224]
[1723885150308,0.0103773,59302.0,59301.0,0.065224]
[1723885151700,0.09469717,59302.0,59301.0,0.065224]
[1723885156520,0.09469717,59302.0,59301.0,0.158524]
[1723885159821,0.0103773,59302.0,59301.0,0.158524]
[1723885165114,0.00016755,59302.0,59301.0,0.158524]
[1723885165514,0.05062894,59302.0,59301.0,0.158524]
[1723885166419,0.00016755,59302.0,59301.0,0.158524]
[1723885168328,0.02749644,59302.0,59301.0,0.158524]
[1723885169426,0.12867886,59302.0,59301.0,0.158524]
[1723885170821,0.12867886,59302.0,59301.0,0.25885768]
[1723885170822,0.02749644,59302.0,59301.0,0.25885768]
[1723885171623,0.02749644,59302.0,59301.0,0.221748]
[1723885171920,0.02749644,59302.0,59301.0,0.25885583]
[1723885173922,0.02749478,59302.0,59301.0,0.25885583]
[1723885174123,0.00016755,59302.0,59301.0,0.25885583]
[1723885175531,0.05073313,59302.0,59301.0,0.25885583]
[1723885177534,0.05073313,59302.0,59301.0,0.25885564]
[1723885179727,0.05073313,59302.0,59301.0,0.221748]
[1723885179933,0.05073313,59302.0,59301.0,0.25885565]
[1723885180236,0.05073313,59302.0,59301.0,0.221748]
[1723885180428,0.05073313,59302.0,59301.0,0.25885565]
[1723885180833,0.00016755,59302.0,59301.0,0.25885565]
[1723885181132,0.00016755,59302.0,59301.0,0.19563165]
[1723885183541,0.05073313,59302.0,59301.0,0.19563165]
[1723885183737,0.28733823,59302.0,59301.0,0.05666806]
[1723885183932,0.06339055,59302.0,59301.0,0.19563165]
[1723885184250,0.06339055,59302.0,59301.0,0.24605558]
[1723885184536,0.06339055,59302.0,59301.0,0.19563439]
[1723885184740,0.06339055,59302.0,59301.0,0.24605441]
[1723885185237,0.06339055,59302.0,59301.0,0.19563439]
[1723885188139,0.06339055,59302.0,59301.0,0.158524]
[1723885188443,0.06339055,59302.0,59301.0,0.19563398]
[1723885189243,0.00016755,59302.0,59301.0,0.19563398]
[1723885191538,0.06757306,59302.0,59301.0,0.16955884]
[1723885191743,0.06757306,59302.0,59301.0,0.26285884]
[1723885192341,0.06757306,59302.0,59301.0,0.26285754]
[1723885192738,0.06757306,59302.0,59301.0,0.22574886]
[1723885192930,0.06757306,59302.0,59301.0,0.26285754]
[1723885194440,0.06757306,59302.0,59301.0,0.16955754]
[1723885194945,0.06757306,59302.0,59301.0,0.26285754]
[1723885195146,0.06757306,59302.0,59301.0,0.16955754]
[1723885197539,0.06757306,59302.0,59301.0,0.187117]
[1723885199947,0.06757306,59302.0,59301.0,0.16955754]
[1723885200540,0.06757306,59302.0,59301.0,0.26285754]
[1723885200748,0.00016755,59302.0,59301.0,0.26285754]
[1723885200940,0.00016755,59302.0,59301.0,4.09695383]
[1723885203137,0.00016755,59302.0,59301.0,4.03285754]
[1723885203343,0.00016755,59302.0,59301.0,4.0297297]
[1723885203542,0.00016755,59302.0,59301.0,4.04728198]
[1723885203740,0.00016755,59302.0,59301.0,4.04728104]
[1723885204347,0.00016755,59302.0,59301.0,3.95398104]
[1723885204842,0.00016755,59302.0,59301.0,0.10233229]
[1723885205245,0.00016755,59302.0,59301.0,0.03910829]
[1723885205246,0.07339055,59302.0,59301.0,0.03910829]
[1723885205447,1.00660046,59302.0,59301.0,0.002]
[1723885205644,1.11692346,59302.0,59301.0,0.002]
[1723885205846,1.05370046,59302.0,59301.0,0.002]
[1723885206545,0.66397838,59302.0,59301.0,0.002]
[1723885206753,1.06397838,59302.0,59301.0,0.002]
[1723885207049,0.76313168,59302.0,59301.0,0.002]
[1723885207249,1.06397838,59302.0,59301.0,0.002]
[1723885207440,0.66397838,59302.0,59301.0,0.002]
[1723885207646,0.82050138,59302.0,59301.0,0.002]
[1723885207851,0.25139838,59302.0,59301.0,0.002]
[1723885208049,0.75727838,59302.0,59301.0,0.002]
[1723885208247,0.25139838,59302.0,59301.0,0.002]
[1723885208448,0.75728247,59302.0,59301.0,0.002]
[1723885208755,0.97300247,59302.0,59301.0,0.002]
[1723885209349,1.13724844,59302.0,59301.0,0.002]
[1723885209553,1.03622547,59302.0,59301.0,0.002]
[1723885209753,0.97300247,59302.0,59301.0,0.002]
[1723885210345,1.57989029,59302.0,59301.0,0.002]
[1723885210548,1.47888247,59302.0,59301.0,0.002]
[1723885210952,1.51452872,59302.0,59301.0,0.002]
[1723885211148,1.47888247,59302.0,59301.0,0.002]
[1723885211653,1.54210547,59302.0,59301.0,0.002]
[1723885212052,1.64310088,59302.0,59301.0,0.002]